fUSD/lending_fUSD_20241116
["ID","MTS","AMOUNT","RATE_DAILY","PERIOD"]
[342335767,1731747038699,-500.0,9.999e-05,2]
[342335768,1731747038709,-250.07,9.999e-05,2]
[342335769,1731747038719,-500.0,9.999e-05,2]
[342335770,1731747038729,-500.0,9.999e-05,2]
[342335771,1731747038740,-432.85279419,9.999e-05,2]
[342335772,1731747038750,-563.63030459,9.999e-05,2]
[342335773,1731747038760,-500.0,9.999e-05,2]
[342335774,1731747038770,-500.0,9.999e-05,2]
[342335775,1731747038779,-500.0,9.999e-05,2]
[342335776,1731747038789,-500.0,9.999e-05,2]
[342335777,1731747038799,-500.0,9.999e-05,2]
[342335778,1731747038809,-500.0,9.999e-05,2]
[342335779,1731747038820,-500.0,9.999e-05,2]
[342335780,1731747038831,-500.0,9.999e-05,2]
[342335781,1731747038841,-500.0,9.999e-05,2]
[342335782,1731747038851,-500.0,9.999e-05,2]
[342335783,1731747038861,-472.6508634,9.999e-05,2]
[342335784,1731747038871,-441.75,9.999e-05,2]
[342335785,1731747038880,-433.58833004,9.999e-05,2]
[342335786,1731747038891,-1060.0,0.0001,2]
[342335787,1731747038901,-3580.56827713,0.0001,2]
[342335788,1731747038911,-187281.97113023,0.0001,2]
[342335789,1731747038925,-2383665.43140727,0.0001,2]
[342335790,1731747038939,-311.23,0.0001,2]
[342335791,1731747038959,-4007.2851614,0.0001,2]
[342335792,1731747038971,-1908.86087929,0.0001,2]
[342335793,1731747038983,-562.85707847,0.0001,2]
[342335799,1731747039670,-34857.99230433,0.0001,2]
[342335800,1731747039808,-23900.0,9.452e-05,2]
[342335801,1731747039818,-3518.29056893,0.0001,2]
[342335802,1731747039831,-10802.10669584,0.0001,2]
[342335803,1731747039853,-1726.80402394,0.0001,2]
[342335804,1731747039953,-48321.55263138,0.0001,2]
[342335816,1731747042836,-9707.6118,0.0001,2]
[342335817,1731747042848,-45634.965,0.0001,2]
[342335818,1731747042890,-5862.5166409,0.0001,2]
[342335819,1731747042903,-26530.48153252,0.0001,2]
[342335820,1731747043001,-18237.6,0.0001,2]
[342336091,1731747045779,-150.0,9.38e-05,2]
[342336093,1731747045789,-662.15,0.0001,2]
[342336110,1731747045949,-292.85,0.0001,2]
[342336112,1731747045958,-3801619.15,0.0001,2]
[342336118,1731747046006,-9154.9734,0.0001,2]
[342336120,1731747046017,-6535.45968719,0.0001,2]
[342336126,1731747046064,-488.9000034,0.0001,2]
[342336134,1731747046124,-1266.6333367,0.0001,2]
[342337245,1731747230573,1064.66,8.219e-05,2]
[342337300,1731748041116,-1628.73,8.768e-05,2]
[342337301,1731748041137,-1500.0,8.768e-05,2]
[342337302,1731748041158,-1000.0,8.81e-05,2]
[342337303,1731748041177,-1338.9,8.891e-05,2]
[342337304,1731748041198,-250.0,8.936e-05,2]
[342337305,1731748041220,-300.0,8.971e-05,2]
[342337306,1731748041241,-3010.23937329,8.972e-05,2]
[342337307,1731748045275,-1400.72062671,8.972e-05,2]
[342337308,1731748045295,-250.0,9.087e-05,2]
[342337309,1731748045316,-496.08,9.138e-05,2]
[342337310,1731748045334,-2225.1,9.165e-05,2]
[342337311,1731748045353,-500.0,9.193e-05,2]
[342337312,1731748045373,-450.06097113,9.2e-05,2]
[342337313,1731748073419,1011.42,8.219e-05,2]
[342337320,1731748231765,-183.93902887,9.2e-05,2]
[342337321,1731748231775,-164.84,9.224e-05,2]
[342337322,1731748231783,-560.99,9.242e-05,2]
[342337323,1731748231793,-362.43,9.278e-05,2]
[342337324,1731748231802,-362.43,9.278e-05,2]
[342337325,1731748231811,-150.0,9.278e-05,2]
[342337326,1731748231819,-362.43,9.278e-05,2]
[342337327,1731748231828,-150.0,9.378e-05,2]
[342337328,1731748231837,-150.0,9.478e-05,2]
[342337329,1731748231846,-362.43,9.48e-05,2]
[342337330,1731748231855,-361.99,9.48e-05,2]
[342337331,1731748231864,-169.66,9.5e-05,2]
[342337332,1731748231872,-200.0,9.6e-05,2]
[342337333,1731748231881,-150.0,9.669e-05,2]
[342337334,1731748231891,-952.65,9.67e-05,2]
[342337335,1731748231900,-329.0,9.67e-05,2]
[342337336,1731748231909,-299.99,9.67e-05,2]
[342337337,1731748231919,-10139.69,9.67e-05,2]
[342337338,1731748231928,-150.99,9.67e-05,2]
[342337339,1731748231938,-352.7,9.67e-05,2]
[342337340,1731748231946,-17016.8816,9.8e-05,2]
[342337341,1731748231955,-1000.0,9.8e-05,2]
[342337342,1731748231964,-8799.9183244,9.8e-05,2]
[342337343,1731748231990,-923.0816756,9.8e-05,2]
[342337344,1731748232000,-5878.21226447,9.898e-05,2]
[342337345,1731748232010,-2718.54,9.898e-05,2]
[342337351,1731748232272,-15881.51353553,9.898e-05,2]
[342337352,1731748232282,-2500.0,9.898e-05,2]
[342337353,1731748232292,-7270.8074,9.899e-05,2]
[342337354,1731748232301,-1000.0,9.911e-05,2]
[342337355,1731748232310,-66088.496977,9.954e-05,2]
[342337356,1731748232328,-1373.08667666,9.954e-05,2]
[342337357,1731748232338,-680.09575,9.954e-05,2]
[342337358,1731748232356,-426.32802667,9.954e-05,2]
[342337359,1731748232367,-450.57754012,9.954e-05,2]
[342337360,1731748232389,-1252.41151736,9.954e-05,2]
[342337361,1731748232400,-1425.36579245,9.954e-05,2]
[342337362,1731748232411,-1533.12546743,9.954e-05,2]
[342337364,1731748237767,-91354.23361912,9.954e-05,2]
[342337365,1731748237779,-1756.17897764,9.954e-05,2]
[342337366,1731748237824,-15035.330796,9.954e-05,2]
[342337367,1731748237835,-22227.35101581,9.954e-05,2]
[342337368,1731748237847,-7094.29459475,9.954e-05,2]
[342337369,1731748237888,-85893.9632262,9.954e-05,2]
[342337370,1731748237898,-49009.20902401,9.954e-05,2]
[342337371,1731748237908,-49009.20902401,9.956e-05,2]
[342337372,1731748237919,-296590.83997721,9.96e-05,2]
[342337373,1731748237928,-49009.20902401,9.962e-05,2]
[342337374,1731748237937,-704.122,9.963e-05,2]
[342337375,1731748237946,-356.59218382,9.973e-05,2]
[342337376,1731748237955,-296590.83997721,9.991e-05,2]
[342337377,1731748237965,-296590.83997721,9.995e-05,2]
[342337378,1731748237974,-49009.20902401,9.995e-05,2]
[342337379,1731748238185,-49009.20902401,9.996e-05,2]
[342337380,1731748238195,-296590.83997721,9.997e-05,2]
[342337381,1731748238204,-580.62614466,9.997e-05,2]
[342337382,1731748238214,-245.88049841,9.997e-05,2]
[342337383,1731748238223,-512.59595393,9.997e-05,2]
[342337384,1731748238232,-261.95838229,9.997e-05,2]
[342337386,1731748238242,-500.0,9.997e-05,2]
[342337387,1731748238251,-386.92800698,9.997e-05,2]
[342337388,1731748238260,-500.0,9.997e-05,2]
[342337389,1731748238270,-500.0,9.997e-05,2]
[342337390,1731748238278,-500.0,9.997e-05,2]
[342337391,1731748238287,-500.0,9.997e-05,2]
[342337392,1731748238297,-500.0,9.997e-05,2]
[342337393,1731748238306,-500.0,9.997e-05,2]
[342337394,1731748238315,-500.0,9.997e-05,2]
[342337395,1731748238326,-501.68499174,9.997e-05,2]
[342337396,1731748238335,-568.69814212,9.997e-05,2]
[342337397,1731748238344,-500.0,9.997e-05,2]
[342337399,1731748238353,-500.0,9.997e-05,2]
[342337401,1731748238363,-500.0,9.997e-05,2]
[342337403,1731748238372,-500.0,9.997e-05,2]
[342337405,1731748238382,-500.0,9.997e-05,2]
[342337407,1731748238391,-500.0,9.997e-05,2]
[342337409,1731748238400,-500.0,9.997e-05,2]
[342337411,1731748238411,-500.0,9.997e-05,2]
[342337413,1731748238421,-500.0,9.997e-05,2]
[342337415,1731748238431,-500.0,9.997e-05,2]
[342337417,1731748238439,-502.62739478,9.997e-05,2]
[342337419,1731748238448,-500.0,9.997e-05,2]
[342337421,1731748238458,-501.79289175,9.997e-05,2]
[342337424,1731748238468,-500.0,9.997e-05,2]
[342337426,1731748238478,-500.0,9.997e-05,2]
[342337428,1731748238488,-500.0,9.997e-05,2]
[342337430,1731748238497,-500.0,9.997e-05,2]
[342337432,1731748238506,-500.0,9.997e-05,2]
[342337435,1731748238515,-500.0,9.997e-05,2]
[342337437,1731748238524,-500.0,9.997e-05,2]
[342337439,1731748238533,-500.0,9.997e-05,2]
[342337442,1731748238542,-500.0,9.997e-05,2]
[342337443,1731748238551,-500.0,9.997e-05,2]
[342337446,1731748238561,-594.35486101,9.997e-05,2]
[342337448,1731748238570,-502.57382527,9.997e-05,2]
[342337450,1731748238579,-536.76693421,9.997e-05,2]
[342337451,1731748238589,-500.0,9.997e-05,2]
[342337452,1731748238598,-202.1130542,9.997e-05,2]
[342337453,1731748238607,-500.0,9.997e-05,2]
[342337454,1731748238616,-1000.0,9.997e-05,2]
[342337455,1731748238625,-1000.0,9.997e-05,2]
[342337456,1731748238635,-402.99890742,9.997e-05,2]
[342337457,1731748238644,-419.99951469,9.997e-05,2]
[342337458,1731748238653,-500.0,9.997e-05,2]
[342337459,1731748238662,-500.0,9.997e-05,2]
[342337460,1731748238672,-625.5757018,9.997e-05,2]
[342337461,1731748238681,-500.0,9.997e-05,2]
[342337462,1731748238690,-500.0,9.997e-05,2]
[342337463,1731748238699,-509.41831603,9.997e-05,2]
[342337464,1731748238708,-536.98717857,9.997e-05,2]
[342337465,1731748238718,-521.63926006,9.997e-05,2]
[342337466,1731748238727,-500.0,9.997e-05,2]
[342337468,1731748238736,-301.31,9.997e-05,2]
[342337470,1731748238747,-574.73970867,9.997e-05,2]
[342337472,1731748238756,-557.70705819,9.997e-05,2]
[342337474,1731748238765,-500.0,9.997e-05,2]
[342337476,1731748238775,-534.98396365,9.997e-05,2]
[342337478,1731748238784,-9784.39,9.997e-05,2]
[342337480,1731748238793,-500.0,9.997e-05,2]
[342337482,1731748238802,-9784.39,9.997e-05,2]
[342337484,1731748238811,-500.0,9.997e-05,2]
[342337486,1731748238820,-500.0,9.997e-05,2]
[342337488,1731748238831,-591.93130444,9.997e-05,2]
[342337490,1731748238840,-500.0,9.997e-05,2]
[342337492,1731748238849,-500.0,9.997e-05,2]
[342337494,1731748238858,-500.0,9.997e-05,2]
[342337496,1731748238867,-500.0,9.997e-05,2]
[342337498,1731748238878,-500.0,9.997e-05,2]
[342337501,1731748238888,-500.0,9.997e-05,2]
[342337503,1731748238898,-500.0,9.997e-05,2]
[342337505,1731748238908,-500.0,9.997e-05,2]
[342337507,1731748238919,-500.0,9.997e-05,2]
[342337509,1731748238929,-198.04937625,9.997e-05,2]
[342337511,1731748238938,-563.63030459,9.997e-05,2]
[342337513,1731748238947,-500.0,9.997e-05,2]
[342337515,1731748238956,-441.75,9.997e-05,2]
[342337516,1731748238966,-500.0,9.997e-05,2]
[342337519,1731748238975,-433.58833004,9.997e-05,2]
[342337521,1731748238985,-472229.348438,9.998e-05,2]
[342337523,1731748238996,-500.0,9.998e-05,2]
[342337525,1731748239005,-500.0,9.998e-05,2]
[342337527,1731748239014,-500.0,9.998e-05,2]
[342337529,1731748239023,-611.45,9.998e-05,2]
[342337531,1731748239033,-500.0,9.998e-05,2]
[342337533,1731748239042,-500.0,9.998e-05,2]
[342337535,1731748239051,-501.05917094,9.998e-05,2]
[342337537,1731748239060,-500.0,9.998e-05,2]
[342337539,1731748239070,-500.0,9.998e-05,2]
[342337541,1731748239083,-500.0,9.998e-05,2]
[342337543,1731748239092,-500.0,9.998e-05,2]
[342337545,1731748239101,-9784.39,9.998e-05,2]
[342337547,1731748239111,-500.0,9.998e-05,2]
[342337549,1731748239121,-500.0,9.998e-05,2]
[342337551,1731748239130,-500.0,9.998e-05,2]
[342337553,1731748239139,-500.0,9.998e-05,2]
[342337555,1731748239150,-432.85279419,9.998e-05,2]
[342337557,1731748239160,-2776.46989984,9.999e-05,2]
[342337559,1731748239169,-500.0,9.999e-05,2]
[342337561,1731748239179,-500.0,9.999e-05,2]
[342337563,1731748239188,-227.80124204,9.999e-05,2]
[342337565,1731748239198,-500.0,9.999e-05,2]
[342337567,1731748239207,-500.0,9.999e-05,2]
[342337568,1731748239217,-500.0,9.999e-05,2]
[342337570,1731748239226,-500.0,9.999e-05,2]
[342337572,1731748239235,-500.0,9.999e-05,2]
[342337574,1731748239245,-500.0,9.999e-05,2]
[342337576,1731748239254,-500.0,9.999e-05,2]
[342337578,1731748239264,-500.0,9.999e-05,2]
[342337580,1731748239273,-500.0,9.999e-05,2]
[342337582,1731748239282,-500.0,9.999e-05,2]
[342337584,1731748239292,-500.0,9.999e-05,2]
[342337586,1731748239301,-500.0,9.999e-05,2]
[342337588,1731748239310,-500.0,9.999e-05,2]
[342337590,1731748239319,-223.39499265,9.999e-05,2]
[342337592,1731748239328,-500.0,9.999e-05,2]
[342337594,1731748239338,-396.34121654,9.999e-05,2]
[342337596,1731748239347,-500.56039619,9.999e-05,2]
[342337598,1731748239356,-500.0,9.999e-05,2]
[342337600,1731748239365,-499.65999199,9.999e-05,2]
[342337602,1731748239374,-497.74000273,9.999e-05,2]
[342337604,1731748239384,-501.27687495,9.999e-05,2]
[342337606,1731748239393,-500.0,9.999e-05,2]
[342337608,1731748239403,-500.0,9.999e-05,2]
[342337610,1731748239412,-500.0,9.999e-05,2]
[342337612,1731748239423,-462.48321455,9.999e-05,2]
[342337614,1731748239433,-615.48986603,9.999e-05,2]
[342337616,1731748239442,-501.5381772,9.999e-05,2]
[342337618,1731748239452,-500.0,9.999e-05,2]
[342337620,1731748239461,-528.00845534,9.999e-05,2]
[342337622,1731748239470,-500.0,9.999e-05,2]
[342337624,1731748239479,-500.0,9.999e-05,2]
[342337626,1731748239489,-594.68903446,9.999e-05,2]
[342337628,1731748239498,-161.70966893,9.999e-05,2]
[342337630,1731748239507,-500.0,9.999e-05,2]
[342337632,1731748239516,-500.0,9.999e-05,2]
[342337634,1731748239526,-500.0,9.999e-05,2]
[342337637,1731748239538,-500.0,9.999e-05,2]
[342337638,1731748239547,-500.0,9.999e-05,2]
[342337640,1731748239556,-514.8936296,9.999e-05,2]
[342337641,1731748239566,-500.0,9.999e-05,2]
[342337642,1731748239576,-500.0,9.999e-05,2]
[342337643,1731748239586,-216.16437878,9.999e-05,2]
[342337644,1731748239596,-544.95573871,9.999e-05,2]
[342337645,1731748239607,-500.75208042,9.999e-05,2]
[342337647,1731748239617,-500.0,9.999e-05,2]
[342337648,1731748239627,-355.55044062,9.999e-05,2]
[342337649,1731748239636,-500.0,9.999e-05,2]
[342337650,1731748239647,-500.0,9.999e-05,2]
[342337651,1731748239658,-500.0,9.999e-05,2]
[342337652,1731748239668,-500.0,9.999e-05,2]
[342337653,1731748239682,-500.0,9.999e-05,2]
[342337654,1731748239691,-500.0,9.999e-05,2]
[342337655,1731748239700,-500.0,9.999e-05,2]
[342337656,1731748239709,-500.0,9.999e-05,2]
[342337657,1731748239719,-500.0,9.999e-05,2]
[342337658,1731748239728,-500.0,9.999e-05,2]
[342337659,1731748239737,-499.49387028,9.999e-05,2]
[342337660,1731748239747,-9784.39,9.999e-05,2]
[342337661,1731748239756,-9784.39,9.999e-05,2]
[342337662,1731748239765,-9784.39,9.999e-05,2]
[342337663,1731748239775,-9784.39,9.999e-05,2]
[342337664,1731748239786,-9784.39,9.999e-05,2]
[342337665,1731748239795,-9784.39,9.999e-05,2]
[342337666,1731748239804,-9784.39,9.999e-05,2]
[342337667,1731748239813,-9784.39,9.999e-05,2]
[342337668,1731748239822,-9784.39,9.999e-05,2]
[342337669,1731748239831,-9784.39,9.999e-05,2]
[342337670,1731748239840,-9784.39,9.999e-05,2]
[342337671,1731748239850,-9784.39,9.999e-05,2]
[342337672,1731748239859,-9784.39,9.999e-05,2]
[342337673,1731748239868,-9784.39,9.999e-05,2]
[342337674,1731748239877,-9784.39,9.999e-05,2]
[342337675,1731748239886,-9784.39,9.999e-05,2]
[342337676,1731748239895,-9784.39,9.999e-05,2]
[342337677,1731748239904,-9784.39,9.999e-05,2]
[342337678,1731748239913,-9784.39,9.999e-05,2]
[342337679,1731748239924,-9784.39,9.999e-05,2]
[342337680,1731748239933,-9784.4040181,9.999e-05,2]
[342337681,1731748239943,-519.18,9.999e-05,2]
[342337682,1731748239952,-347.04879262,9.999e-05,2]
[342337683,1731748239961,-500.0,9.999e-05,2]
[342337684,1731748239971,-500.0,9.999e-05,2]
[342337685,1731748239980,-500.0,9.999e-05,2]
[342337686,1731748239989,-500.0,9.999e-05,2]
[342337687,1731748239998,-500.0,9.999e-05,2]
[342337688,1731748240008,-500.0,9.999e-05,2]
[342337689,1731748240017,-500.0,9.999e-05,2]
[342337690,1731748240027,-472.6508634,9.999e-05,2]
[342337691,1731748240036,-885.0,9.999e-05,2]
[342337692,1731748240045,-3620.15560133,0.0001,2]
[342337693,1731748240055,-187383.7294685,0.0001,2]
[342337694,1731748240064,-627067.37028647,0.0001,2]
[342337695,1731748240082,-1795.59684202,0.0001,2]
[342337696,1731748240093,-563.31326908,0.0001,2]
[342337697,1731748240104,-428.61941707,0.0001,2]
[342337698,1731748240116,-824.51259311,0.0001,2]
[342337699,1731748240140,-200.0,9.956e-05,2]
[342337700,1731748240151,-6653.84525632,0.0001,2]
[342337701,1731748240162,-3790.40575991,0.0001,2]
[342337702,1731748240175,-9200.87170909,0.0001,2]
[342337703,1731748240186,-846.66247638,0.0001,2]
[342337704,1731748240197,-6160.85987509,0.0001,2]
[342337705,1731748240208,-5255.92241343,0.0001,2]
[342337706,1731748240232,-1146479.60949776,0.0001,2]
[342337707,1731748240254,-4566.56275671,0.0001,2]
[342337708,1731748240265,-394.95774352,0.0001,2]
[342337709,1731748240281,-685.85215512,0.0001,2]
[342337710,1731748240293,-451.00207171,0.0001,2]
[342337711,1731748240309,-649.09755,0.0001,2]
[342337712,1731748240321,-319.8,0.0001,2]
[342337713,1731748240331,-3990.33453843,0.0001,2]
[342337714,1731748240342,-5364.30686,0.0001,2]
[342337715,1731748240353,-23148.84873534,0.0001,2]
[342337716,1731748240381,-200.0,9.998e-05,2]
[342337717,1731748240390,-3449.93045815,0.0001,2]
[342337718,1731748240564,-200.0,9.973e-05,2]
[342337719,1731748240574,-200.0,9.99e-05,2]
[342337720,1731748240583,-1.025,9.991e-05,2]
[342337721,1731748240594,-198.975,9.991e-05,2]
[342337722,1731748240603,-5640.98830959,0.0001,2]
[342337723,1731748240614,-394.865,0.0001,2]
[342337724,1731748240624,-311.52,0.0001,2]
[342337725,1731748240635,-439.66,0.0001,2]
[342337726,1731748240646,-928.28433342,0.0001,2]
[342337727,1731748240656,-438.91374504,0.0001,2]
[342337728,1731748240667,-1403.94,0.0001,2]
[342337729,1731748240679,-3063.04383465,0.0001,2]
[342337730,1731748240709,-512.29,0.0001,2]
[342337731,1731748240725,-801.0,0.0001,2]
[342337732,1731748240741,-56808.28110991,0.0001,2]
[342337733,1731748240752,-3243.00881489,0.0001,2]
[342337734,1731748240762,-11389.90741487,0.0001,2]
[342337735,1731748240837,-24.41087946,0.0001,2]
[342337736,1731748240847,-6502.29444604,0.0001,2]
[342337737,1731748242788,-3505.23010321,0.0001,2]
[342337738,1731748242847,-9631.4658,0.0001,2]
[342337739,1731748242858,-382.178985,0.0001,2]
[342337740,1731748242869,-742.0532403,0.0001,2]
[342337741,1731748242908,-2000.0,0.0001,2]
[342337742,1731748242966,-3200.96531707,0.0001,2]
[342337743,1731748243026,-50153.50804096,0.0001,2]
[342337744,1731748243037,-75117.99924,0.0001,2]
[342337778,1731748245761,-839.0,0.0001,2]
[342337779,1731748245770,-17424.8,0.0001,2]
[342337780,1731748245820,-2848.71463,0.0001,2]
[342337781,1731748245831,-6736.6473,0.0001,2]
[342337782,1731748245844,-2042.3655,0.0001,2]
[342337783,1731748245942,-1988.7591,0.0001,2]
[342337785,1731748246255,-3212.03833087,0.0001,2]
[342337813,1731748411168,-881.63,8.988e-05,2]
[342337814,1731748411192,-250.0,9.271e-05,2]
[342337815,1731748411218,-300.0,9.897e-05,2]
[342337816,1731748411242,-6168.37,9.898e-05,2]
[342337817,1731748587484,521.63926006,0.00025,60]
[342337818,1731748591374,512.59595393,0.00025,60]
[342337819,1731748593760,500.0,0.00025,60]
[342337820,1731748594013,367.75070959,0.00025,60]
[342337821,1731748597881,9784.39,0.00025,60]
[342337822,1731748598142,9784.39,0.00025,60]
[342337823,1731748598406,9784.39,0.00025,60]
[342337824,1731748598689,9784.39,0.00025,60]
[342337825,1731748599122,9784.39,0.00025,60]
[342337826,1731748599410,9784.39,0.00025,60]
[342337827,1731748599663,9784.39,0.00025,60]
[342337828,1731748600165,9784.39,0.00025,60]
[342337829,1731748600221,9784.39,0.00025,60]
[342337830,1731748600550,9784.39,0.00025,60]
[342337831,1731748600837,9784.39,0.00025,60]
[342337832,1731748601095,9784.39,0.00025,60]
[342337833,1731748601361,9784.39,0.00025,60]
[342337834,1731748601650,9784.39,0.00025,60]
[342337835,1731748601913,9784.39,0.00025,60]
[342337836,1731748602189,9784.39,0.00025,60]
[342337837,1731748602462,9784.39,0.00025,60]
[342337838,1731748602741,9784.39,0.00025,60]
[342337839,1731748603098,9784.39,0.00025,60]
[342337840,1731748603374,9784.39,0.00025,60]
[342337841,1731748603652,9784.39,0.00025,60]
[342337842,1731748603993,9784.39,0.00025,60]
[342337843,1731748604271,9784.39,0.00025,60]
[342337844,1731748604546,9784.4040181,0.00025,60]
[342337845,1731748612266,500.0,0.00025,60]
[342337846,1731748612606,534.98396365,0.00025,60]
[342337847,1731748622908,261.95838229,0.00025,60]
[342337848,1731748643083,500.0,0.00025,60]
[342337849,1731748643338,500.0,0.00025,60]
[342337850,1731748645560,500.0,0.00025,60]
[342337851,1731748645837,500.0,0.00025,60]
[342337852,1731748646109,500.0,0.00025,60]
[342337853,1731748649062,500.0,0.00025,60]
[342337854,1731748649383,501.68499174,0.00025,60]
[342337855,1731748655707,500.0,0.00025,60]
[342337856,1731748655956,500.0,0.00025,60]
[342337857,1731748656223,500.0,0.00025,60]
[342337858,1731748659036,500.0,0.00025,60]
[342337859,1731748659334,502.62739478,0.00025,60]
[342337860,1731748660254,500.0,0.00025,60]
[342337861,1731748660433,500.0,0.00025,60]
[342337862,1731748660691,500.0,0.00025,60]
[342337863,1731748660979,519.18,0.00025,60]
[342337864,1731748661516,500.0,0.00025,60]
[342337865,1731748661823,501.79289175,0.00025,60]
[342337866,1731748664683,500.0,0.00025,60]
[342337867,1731748665718,500.0,0.00025,60]
[342337868,1731748668363,500.0,0.00025,60]
[342337869,1731748668624,500.0,0.00025,60]
[342337870,1731748668922,500.0,0.00025,60]
[342337871,1731748674646,500.0,0.00025,60]
[342337872,1731748676726,500.0,0.00025,60]
[342337873,1731748676990,500.0,0.00025,60]
[342337874,1731748677255,501.05917094,0.00025,60]
[342337875,1731748684014,-10000.0,0.0001,10]
[342337876,1731748686258,500.0,0.00025,60]
[342337877,1731748686561,500.0,0.00025,60]
[342337878,1731748686983,500.0,0.00025,60]
[342337879,1731748688457,500.0,0.00025,60]
[342337880,1731748688762,500.0,0.00025,60]
[342337881,1731748689101,500.0,0.00025,60]
[342337882,1731748690120,500.0,0.00025,60]
[342337883,1731748690509,500.0,0.00025,60]
[342337884,1731748690793,500.0,0.00025,60]
[342337885,1731748701177,568.69814212,0.00025,60]
[342337886,1731748703187,500.0,0.00025,60]
[342337887,1731748703497,500.0,0.00025,60]
[342337888,1731748703713,500.0,0.00025,60]
[342337889,1731748706120,500.0,0.00025,60]
[342337890,1731748706400,500.0,0.00025,60]
[342337891,1731748706647,611.45,0.00025,60]
[342337892,1731748716260,500.0,0.00025,60]
[342337893,1731748725464,500.0,0.00025,60]
[342337894,1731748729743,500.0,0.00025,60]
[342337895,1731748730012,500.0,0.00025,60]
[342337896,1731748730305,500.0,0.00025,60]
[342337897,1731748734229,594.35486101,0.00025,60]
[342337898,1731748734882,500.0,0.00025,60]
[342337899,1731748735152,198.04937625,0.00025,60]
[342337900,1731748736467,591.93130444,0.00025,60]
[342337902,1731748762850,502.57382527,0.00025,60]
[342337903,1731748794597,574.73970867,0.00025,60]
[342337904,1731748794895,2882.23,0.00025,60]
[342337905,1731748795154,2882.23,0.00025,60]
[342337906,1731748795427,2882.23,0.00025,60]
[342337907,1731748795672,2882.23,0.00025,60]
[342337908,1731748795950,2882.23,0.00025,60]
[342337909,1731748796551,2882.23,0.00025,60]
[342337910,1731748796580,2882.23,0.00025,60]
[342337911,1731748797143,2882.23,0.00025,60]
[342337912,1731748797227,2882.23,0.00025,60]
[342337913,1731748797527,2882.23,0.00025,60]
[342337914,1731748797775,2882.23,0.00025,60]
[342337915,1731748798031,2882.23,0.00025,60]
[342337916,1731748798325,2882.23,0.00025,60]
[342337917,1731748798580,2882.23,0.00025,60]
[342337918,1731748798853,2882.23,0.00025,60]
[342337919,1731748799118,2882.23,0.00025,60]
[342337920,1731748799403,2882.23,0.00025,60]
[342337921,1731748799695,2882.23,0.00025,60]
[342337922,1731748800005,2882.23,0.00025,60]
[342337923,1731748800282,2882.23,0.00025,60]
[342337924,1731748800625,2882.23,0.00025,60]
[342337925,1731748800907,2882.23,0.00025,60]
[342337926,1731748801224,2882.23,0.00025,60]
[342337927,1731748801507,2882.29,0.00025,60]
[342337928,1731748802266,994.41,8.219e-05,2]
[342337929,1731748818317,202.1130542,0.00025,60]
[342337930,1731748819991,151.044,0.0002385,60]
[342337931,1731748820682,500.0,0.00025,60]
[342337932,1731748820909,557.70705819,0.00025,60]
[342337933,1731748820970,500.0,0.00025,60]
[342337934,1731748821264,432.85279419,0.00025,60]
[342337935,1731748825815,500.0,0.00025,60]
[342337936,1731748827307,563.63030459,0.00025,60]
[342337937,1731748830125,500.0,0.00025,60]
[342337938,1731748830394,500.0,0.00025,60]
[342337939,1731748830659,500.0,0.00025,60]
[342337940,1731748830893,500.0,0.00025,60]
[342337941,1731748831177,500.0,0.00025,60]
[342337942,1731748831429,500.0,0.00025,60]
[342337943,1731748831720,500.0,0.00025,60]